bitfinex/quotes_BTCUSD_20220109
["timestamp","ask_amount","ask_price","bid_price","bid_amount"]
[1641698911341,0.00449173,42055.0,42052.0,0.001]
[1641698912542,0.00449173,42055.0,42051.0,0.0594595]
[1641698913242,0.059467,42054.0,42051.0,0.0594595]
[1641698914898,0.059467,42054.0,42051.0,0.2730722]
[1641698915498,0.059467,42054.0,42051.0,0.3325362]
[1641698915702,0.059467,42054.0,42051.0,0.1189235]
[1641698918445,0.059467,42054.0,42052.0,0.32467162]
[1641698918653,0.12342373,42055.0,42053.0,0.65822835]
[1641698918654,0.00449173,42055.0,42053.0,0.65822835]
[1641698918846,0.00449173,42055.0,42054.0,0.21689193]
[1641698919347,0.00449173,42055.0,42054.0,0.21789193]
[1641698920447,0.00449173,42055.0,42054.0,0.001]
[1641698920646,0.00449173,42055.0,42052.0,0.11891209]
[1641698921046,0.12342473,42055.0,42052.0,0.11891209]
[1641698926347,0.12323135,42055.0,42052.0,0.11891209]
[1641698926747,0.059466,42054.0,42052.0,0.11891209]
[1641698930699,0.059466,42054.0,42053.0,0.3246844]
[1641698930996,0.00429835,42055.0,42053.0,0.3246844]
[1641698931397,0.00429835,42055.0,42053.0,0.3256844]
[1641698931997,0.06375835,42055.0,42053.0,0.3256844]
[1641698932597,0.06375835,42055.0,42053.0,0.3246844]
[1641698933484,0.00429835,42055.0,42053.0,0.3246844]
[1641698934182,0.00429835,42055.0,42053.0,0.3187374]
[1641698934584,0.05946,42054.0,42053.0,0.3187374]
[1641698935384,0.05946,42054.0,42053.0,0.3197374]
[1641698935983,0.05946,42054.0,42053.0,0.53649351]
[1641698936586,0.05946,42054.0,42053.0,0.53549351]
[1641698938498,0.05946,42054.0,42052.0,0.11891209]
[1641698939299,0.05946,42054.0,42046.0,0.11894]
[1641698939300,0.05946,42054.0,42046.0,0.00041359]
[1641698939502,0.059475,42053.0,42046.0,0.00041359]
[1641698939704,0.059473,42050.0,42049.0,0.05947403]
[1641698941150,0.059473,42050.0,42049.0,0.44228203]
[1641698941952,0.059473,42050.0,42049.0,0.05947403]
[1641698942153,0.059463,42052.0,42049.0,0.62735295]
[1641698942452,0.059463,42052.0,42051.0,0.05946032]
[1641698942652,0.059463,42052.0,42051.0,0.65667016]
[1641698942850,0.059463,42052.0,42051.0,0.44226832]
[1641698943052,0.00429835,42055.0,42051.0,0.76623193]
[1641698943253,0.00429835,42055.0,42052.0,0.05945747]
[1641698943553,0.059457,42054.0,42052.0,0.05945747]
[1641698943753,0.049457,42054.0,42053.0,0.21284583]
[1641698944500,0.049457,42054.0,42053.0,0.27230283]
[1641698945301,0.049457,42054.0,42053.0,0.059457]
[1641698945801,0.049457,42054.0,42052.0,0.05945747]
[1641698948001,0.044457,42054.0,42052.0,0.05945747]
[1641698948248,0.04429991,42054.0,42052.0,0.05945747]
[1641698951913,0.04429991,42054.0,42046.0,0.00041361]
[1641698952113,0.059482,42047.0,42046.0,0.00041361]
[1641698952314,0.186152,42047.0,42040.0,0.059483]
[1641698952514,0.186152,42047.0,42046.0,0.00041364]
[1641698952717,0.56896,42047.0,42046.0,0.00041364]
[1641698953115,0.66896,42047.0,42046.0,0.00041364]
[1641698953514,0.67096,42047.0,42046.0,0.00041368]
[1641698954116,0.95153864,42047.0,42046.0,0.00041368]
[1641698954516,0.95153864,42047.0,42039.0,0.059483]
[1641698954716,0.1897876,42047.0,42046.0,0.00041367]
[1641698954916,0.4937256,42047.0,42046.0,0.00041367]
[1641698955517,0.4957256,42047.0,42046.0,0.00041367]
[1641698955754,0.5552076,42047.0,42046.0,0.00041365]
[1641698956051,0.6552076,42047.0,42046.0,0.00041365]
[1641698956551,0.5957256,42047.0,42046.0,0.00041365]
[1641698957049,0.6552066,42047.0,42046.0,0.00041365]
[1641698957252,0.86033874,42047.0,42046.0,0.00041365]
[1641698957452,0.86233874,42047.0,42046.0,0.00041365]
[1641698957850,0.86233874,42047.0,42036.0,0.12021959]
[1641698958050,0.47953074,42047.0,42046.0,0.00041365]
[1641698958254,0.98131374,42047.0,42046.0,0.00041365]
[1641698958653,0.97931374,42047.0,42046.0,0.00041365]
[1641698958856,0.00126548,42034.0,42032.0,0.119]
[1641698959052,0.107303,42033.0,42032.0,0.119]
[1641698959252,0.107303,42033.0,42032.0,0.10776864]
[1641698959505,0.490111,42033.0,42032.0,0.09546864]
[1641698959704,0.89660064,42033.0,42032.0,0.09546864]
[1641698959905,0.99660064,42033.0,42031.0,0.1668]
[1641698960104,0.243335,42032.0,42031.0,0.1668]
[1641698960307,0.291135,42032.0,42031.0,0.1668]
[1641698961005,0.56661021,42032.0,42031.0,0.1668]
[1641698961407,0.66861021,42032.0,42031.0,0.16721292]
[1641698961606,0.393135,42032.0,42031.0,0.16721292]
[1641698962707,0.391135,42032.0,42031.0,0.16721292]
[1641698963353,0.391135,42032.0,42031.0,0.1668]
[1641698963552,0.393135,42032.0,42031.0,0.16721292]
[1641698963752,0.293135,42032.0,42031.0,0.16721292]
[1641698963952,0.393135,42032.0,42031.0,0.16721292]
[1641698964553,0.393135,42032.0,42031.0,0.16721093]
[1641698964954,0.293135,42032.0,42031.0,0.16721093]
[1641698965153,0.393135,42032.0,42031.0,0.16721093]
[1641698965555,0.1498,42032.0,42031.0,0.1668]
[1641698965754,0.0498,42032.0,42031.0,0.16721093]
[1641698967597,0.0528,42032.0,42031.0,0.16721093]
[1641698967797,0.0478,42032.0,42031.0,0.1668]
[1641698967996,0.0478,42032.0,42031.0,0.16721093]
[1641698968398,0.430608,42032.0,42031.0,0.16721093]
[1641698969000,0.430608,42032.0,42031.0,0.16721102]
[1641698969599,0.433608,42032.0,42031.0,0.16721102]
[1641698969900,0.433608,42032.0,42031.0,0.1668]
[1641698970101,0.433608,42032.0,42031.0,0.16721102]
[1641698970853,0.430608,42032.0,42031.0,0.16721102]
[1641698971049,0.430608,42032.0,42031.0,0.1668]
[1641698971250,0.430608,42032.0,42031.0,0.16721102]
[1641698971449,0.432608,42032.0,42031.0,0.16721102]
[1641698972052,0.53389681,42032.0,42031.0,0.16721102]
[1641698972252,0.71242181,42032.0,42031.0,0.16721102]
[1641698972852,0.61042181,42032.0,42031.0,0.16721102]
[1641698973051,0.71042181,42032.0,42031.0,0.16721102]
[1641698973251,0.71042181,42032.0,42031.0,0.1668]
[1641698973456,0.71242181,42032.0,42031.0,0.16721102]
[1641698974704,0.71042181,42032.0,42031.0,0.16721102]
[1641698975603,0.71242181,42032.0,42031.0,0.16721102]
[1641698975807,1.0793347,42032.0,42031.0,0.16721102]
[1641698976005,1.2793347,42032.0,42031.0,0.16721102]
[1641698976405,1.2793347,42032.0,42021.0,0.9581]
[1641698976606,0.409514,42030.0,42021.0,0.9581]
[1641698976807,0.700649,42030.0,42021.0,0.9581]
[1641698977005,0.800649,42030.0,42021.0,0.9581]
[1641698977606,0.802649,42030.0,42021.0,0.9581]
[1641698977806,0.802649,42030.0,42026.0,0.00041008]
[1641698978246,0.452649,42030.0,42026.0,0.00041008]
[1641698978652,0.802649,42030.0,42026.0,0.00041008]
[1641698978845,0.80054414,42030.0,42026.0,0.00041008]
[1641698979547,0.80254414,42030.0,42026.0,0.00041008]
[1641698980747,0.80054414,42030.0,42026.0,0.00041008]
[1641698980949,0.80054414,42030.0,42021.0,0.9581]
[1641698981149,0.80054414,42030.0,42026.0,0.00041008]
[1641698981350,1.06434001,42030.0,42026.0,0.00041008]
[1641698981549,1.21776801,42030.0,42026.0,0.00041008]
[1641698981748,0.382808,42027.0,42026.0,0.00041008]
[1641698981999,1.00898521,42027.0,42026.0,0.00041008]
[1641698982202,0.30864793,42023.0,42021.0,0.9581]
[1641698982400,0.49922599,42022.0,42021.0,0.9581]
[1641698982601,0.65874499,42022.0,42018.0,0.284796]
[1641698982903,0.059518,42020.0,42018.0,0.000696]
[1641698983102,0.107318,42020.0,42018.0,0.000696]
[1641698983304,0.107318,42020.0,42018.0,0.00110429]
[1641698983501,0.109318,42020.0,42018.0,0.00110429]
[1641698984303,0.109318,42020.0,42018.0,0.000696]
[1641698984503,0.109318,42020.0,42018.0,0.00110429]
[1641698984704,0.107318,42020.0,42018.0,0.00110429]
[1641698985107,0.107318,42020.0,42018.0,0.0606165]
[1641698985645,0.110318,42020.0,42018.0,0.0606165]
[1641698986046,0.110318,42020.0,42018.0,0.00110429]
[1641698986647,0.110318,42020.0,42018.0,0.00110934]
[1641698986850,0.107318,42020.0,42018.0,0.00110934]
[1641698987649,0.110318,42020.0,42018.0,0.000696]
[1641698987850,0.110318,42020.0,42018.0,0.00110934]
[1641698988755,0.107318,42020.0,42018.0,0.000696]
[1641698988952,0.107318,42020.0,42018.0,0.00110934]
[1641698989503,0.109318,42020.0,42018.0,0.00110934]
[1641698989904,0.109318,42020.0,42018.0,0.00110426]
[1641698990903,0.107318,42020.0,42018.0,0.000696]
[1641698991104,0.107318,42020.0,42018.0,0.00110426]
[1641698991504,0.109318,42020.0,42018.0,0.00110426]
[1641698993005,0.107318,42020.0,42018.0,0.00110426]
[1641698993646,0.109318,42020.0,42018.0,0.00110426]
[1641698994247,0.109318,42020.0,42018.0,0.000696]
[1641698994448,0.109318,42020.0,42018.0,0.00110437]
[1641698994849,0.107318,42020.0,42018.0,0.00110437]
[1641698995248,0.166837,42020.0,42018.0,0.00110437]
[1641698995649,0.382808,42019.0,42018.0,0.00110437]
[1641698995849,0.430608,42019.0,42018.0,0.00110437]
[1641698996048,0.530608,42019.0,42018.0,0.00110437]
[1641698996451,0.530608,42019.0,42018.0,0.000696]
[1641698996648,0.530608,42019.0,42018.0,0.00110438]
[1641698997506,0.532608,42019.0,42018.0,0.000696]
[1641698997704,0.532608,42019.0,42018.0,0.00110438]
[1641698999207,0.432608,42019.0,42018.0,0.00110438]
[1641698999610,0.434608,42019.0,42018.0,0.00110438]
[1641698999907,0.432608,42019.0,42018.0,0.00110438]
[1641699000510,0.432608,42019.0,42011.0,0.2998]
[1641699000511,1.01837375,42009.0,42008.0,0.00123184]
[1641699000760,0.00123867,42005.0,42001.0,0.004]
[1641699000962,0.059545,42003.0,42001.0,0.004]
[1641699001157,0.0478,42002.0,42001.0,0.004]
[1641699001567,0.43831909,42002.0,42001.0,0.004]
[1641699001757,0.82112709,42002.0,42001.0,0.004]
[1641699001960,0.92167651,42002.0,41997.0,0.00022]
[1641699002163,0.059549,42000.0,41997.0,0.00022]
[1641699002358,0.382808,41998.0,41997.0,0.00022]
[1641699002562,0.0478,41998.0,41997.0,0.00022]
[1641699003262,0.0478,41998.0,41997.0,0.00063472]
[1641699003560,0.0488,41998.0,41997.0,0.00063472]
[1641699004160,0.0488,41998.0,41997.0,0.00022]
[1641699004405,0.34364694,41998.0,41997.0,0.00063472]
[1641699004606,1.08688494,41998.0,41997.0,0.00063472]
[1641699004807,0.2,41997.0,41996.0,0.00022]
[1641699005005,0.243335,41995.0,41994.0,0.64274643]
[1641699005207,0.66854683,41995.0,41994.0,0.63108116]
[1641699005506,0.66854683,41995.0,41994.0,0.45623203]
[1641699005708,0.64048705,41995.0,41994.0,0.45623203]
[1641699005906,0.64048705,41995.0,41994.0,0.40901863]
[1641699006105,0.70004905,41995.0,41994.0,0.40901863]
[1641699006305,0.32263722,41995.0,41994.0,0.40901863]
[1641699006507,0.22263722,41995.0,41994.0,0.35161863]
[1641699006708,0.109362,41995.0,41994.0,0.35161863]
[1641699006906,0.107362,41995.0,41994.0,0.35161863]
[1641699007606,0.492442,41995.0,41994.0,0.35161863]
[1641699008006,0.592442,41995.0,41994.0,0.35161863]
[1641699008248,0.642442,41995.0,41994.0,0.35161863]
[1641699008449,0.592442,41995.0,41994.0,0.35161863]
[1641699009353,0.59466806,41995.0,41994.0,0.35161863]
[1641699009553,0.59789412,41995.0,41994.0,0.35161863]
[1641699010854,0.59489412,41995.0,41994.0,0.35161863]
[1641699011653,0.59689412,41995.0,41994.0,0.35161863]
[1641699011902,0.49689412,41995.0,41994.0,0.35161863]
[1641699012100,0.11381412,41995.0,41994.0,0.35161863]
[1641699012902,0.11181412,41995.0,41994.0,0.35161863]
[1641699013400,0.49489412,41995.0,41994.0,0.35161863]
[1641699013601,1.06489751,41995.0,41994.0,0.35161863]
[1641699013802,1.06489751,41995.0,41994.0,0.25623792]
[1641699013803,1.39992318,41995.0,41994.0,0.25623792]
[1641699014000,1.40017331,41995.0,41994.0,0.25623792]
[1641699014402,1.40017331,41995.0,41993.0,0.000916]
[1641699014602,0.312962,41994.0,41993.0,0.000916]
[1641699014800,0.360762,41994.0,41993.0,0.000916]
[1641699015001,0.2,41992.0,41989.0,0.00022]
[1641699015201,0.360762,41992.0,41989.0,0.00022]
[1641699015402,0.460762,41992.0,41989.0,0.00022]
[1641699015650,0.463762,41992.0,41989.0,0.00022]
[1641699015857,0.72199774,41992.0,41989.0,0.00022]
[1641699016651,0.72189766,41992.0,41989.0,0.00022]
[1641699016850,0.71889766,41992.0,41989.0,0.00022]
[1641699017355,0.46066192,41992.0,41989.0,0.00022]
[1641699017650,0.46366192,41992.0,41989.0,0.00022]
[1641699018651,0.263762,41992.0,41989.0,0.00022]
[1641699018854,0.160762,41992.0,41989.0,0.00022]
[1641699019703,0.168762,41992.0,41989.0,0.00022]
[1641699020297,0.17321412,41992.0,41989.0,0.00022]
[1641699020898,0.16521412,41992.0,41989.0,0.00022]
[1641699021598,0.17421412,41992.0,41989.0,0.00022]
[1641699022799,0.16521412,41992.0,41989.0,0.00022]
[1641699023653,0.17321412,41992.0,41989.0,0.00022]
[1641699024756,0.01245212,41992.0,41989.0,0.05976981]
[1641699024954,0.00445212,41992.0,41991.0,0.3873]
[1641699025553,0.00445212,41992.0,41991.0,0.96858032]
[1641699025757,0.00645212,41992.0,41991.0,0.96858032]
[1641699027004,0.00445212,41992.0,41991.0,0.96858032]
[1641699027603,0.00745212,41992.0,41991.0,0.96858032]
[1641699028905,0.00445212,41992.0,41991.0,0.96858032]
[1641699029705,0.00945212,41992.0,41991.0,0.96958032]
[1641699030858,0.00445212,41992.0,41991.0,0.96858032]
[1641699031461,0.00445212,41992.0,41991.0,1.31020986]
[1641699031655,0.00845212,41992.0,41991.0,1.35210986]
[1641699032054,0.004,41992.0,41991.0,1.55210985]
[1641699032256,1.212e-05,41992.0,41991.0,1.65210985]
[1641699032456,0.00042643,41997.0,41993.0,0.119058]
[1641699032655,0.00042643,41997.0,41995.0,0.05]
[1641699032856,0.0115,42003.0,41996.0,1.30944551]
[1641699033057,0.0115,42003.0,42002.0,0.30442242]
[1641699033356,0.0115,42003.0,42002.0,0.53235516]
[1641699033757,0.08403,42003.0,42002.0,0.53235516]
[1641699034155,0.08445755,42003.0,42002.0,0.53235516]
[1641699035023,0.04426486,42003.0,42002.0,0.22793274]
[1641699035221,0.04469241,42003.0,42000.0,0.57062416]
[1641699035423,0.04469241,42003.0,42000.0,0.51109416]
[1641699035622,0.04569241,42003.0,42000.0,0.39203221]
[1641699036027,0.04569241,42003.0,41999.0,0.21846994]
[1641699036224,0.00042755,42002.0,41995.0,0.22242345]
[1641699036422,0.059544,41999.0,41995.0,0.22242345]
[1641699037025,0.059544,41999.0,41996.0,0.32992889]
[1641699037424,0.00042755,41998.0,41996.0,0.32492889]
[1641699037627,0.00042755,41998.0,41997.0,0.22239236]
[1641699038453,0.00042646,41998.0,41997.0,0.22239236]
[1641699038954,0.05996546,41998.0,41997.0,0.22239236]
[1641699039755,0.06196546,41998.0,41997.0,0.22239236]
[1641699040555,0.061539,41998.0,41997.0,0.60547236]
[1641699040759,0.06196546,41998.0,41997.0,0.6650133]
[1641699040957,0.05996546,41998.0,41997.0,0.6650133]
[1641699041358,0.00042646,41998.0,41997.0,0.6650133]
[1641699041757,0.008,41998.0,41997.0,0.6660133]
[1641699042010,0.00842646,41998.0,41997.0,1.05438361]
[1641699042814,0.008436,41998.0,41997.0,1.04938361]
[1641699043013,0.000436,41998.0,41997.0,1.04838361]
[1641699043813,0.002,41998.0,41997.0,0.6610133]
[1641699044012,0.002436,41998.0,41997.0,0.43862094]
[1641699045014,0.000436,41998.0,41997.0,0.43762094]
[1641699045653,0.003436,41998.0,41997.0,0.43862094]
[1641699046052,0.003,41998.0,41997.0,0.43862094]
[1641699046255,0.00342627,41998.0,41997.0,0.80252]
[1641699046857,0.00342627,41998.0,41997.0,1.0400079]
[1641699047154,0.119063,42007.0,41997.0,1.0390079]
[1641699047355,0.00042627,41998.0,41997.0,0.6559279]
[1641699047555,0.00042627,41998.0,41997.0,1.0390079]
[1641699047755,0.00042627,41998.0,41997.0,1.0400079]
[1641699048355,0.00042627,41998.0,41997.0,0.67610884]
[1641699048956,0.00042627,41998.0,41997.0,0.67510884]
[1641699049607,0.00042627,41998.0,41997.0,0.73464784]
[1641699049803,0.00642627,41998.0,41997.0,0.73564784]
[1641699050404,0.006,41998.0,41997.0,0.73564784]
[1641699050607,0.00642648,41998.0,41997.0,0.73564784]
[1641699051705,0.00542648,41998.0,41997.0,0.73564784]
[1641699053008,0.00042648,41998.0,41997.0,0.73464784]
[1641699053853,0.00442648,41998.0,41997.0,0.73564784]
[1641699054151,0.00442648,41998.0,41997.0,0.72969784]
[1641699055053,0.00042648,41998.0,41997.0,0.72869784]
[1641699055857,0.00442648,41998.0,41997.0,0.34661784]
[1641699056056,0.28977412,41998.0,41997.0,0.001]
[1641699056260,0.37535412,41998.0,41997.0,0.001]
[1641699056457,0.82815627,41998.0,41991.0,0.00422]
[1641699056655,0.059563,41995.0,41991.0,0.00422]
[1641699056911,0.107363,41994.0,41991.0,0.00422]
[1641699057111,0.47310687,41993.0,41991.0,0.00422]
[1641699057314,0.38308,41992.0,41991.0,0.00422]
[1641699057513,0.43088,41992.0,41991.0,0.00422]
[1641699057716,0.53088,41992.0,41991.0,0.00422]
[1641699058116,0.43088,41992.0,41991.0,0.00422]
[1641699059215,0.0478,41992.0,41991.0,0.00422]
[1641699059815,0.0518,41992.0,41991.0,0.00422]
[1641699061059,0.0478,41992.0,41991.0,0.00422]
[1641699061860,0.0508,41992.0,41991.0,0.00422]
[1641699062961,0.43388,41992.0,41991.0,0.00422]
[1641699063161,0.53088,41992.0,41991.0,0.00422]
[1641699063760,0.53388,41992.0,41991.0,0.00422]
[1641699065105,0.53088,41992.0,41991.0,0.00422]
[1641699065907,0.53388,41992.0,41991.0,0.00422]
[1641699067108,0.53088,41992.0,41991.0,0.00422]
[1641699067308,0.78426214,41992.0,41991.0,0.00422]
[1641699067509,0.53088,41992.0,41991.0,0.00422]
[1641699067708,0.53388,41992.0,41991.0,0.00422]
[1641699068769,0.43388,41992.0,41991.0,0.00422]
[1641699068963,0.43088,41992.0,41991.0,0.00422]
[1641699069865,0.43388,41992.0,41991.0,0.00422]
[1641699070963,0.53088,41992.0,41991.0,0.00422]
[1641699071765,0.53388,41992.0,41991.0,0.00422]
[1641699073009,0.53088,41992.0,41991.0,0.00422]
[1641699073809,0.53388,41992.0,41991.0,0.00422]
[1641699075111,0.53088,41992.0,41991.0,0.00422]
[1641699075853,0.53288,41992.0,41991.0,0.00422]
[1641699077154,0.53088,41992.0,41991.0,0.00422]
[1641699077855,0.53288,41992.0,41991.0,0.00422]
[1641699079058,0.53088,41992.0,41991.0,0.00422]
[1641699079905,0.53288,41992.0,41991.0,0.00422]
[1641699080203,0.43288,41992.0,41991.0,0.00422]
[1641699081003,0.43088,41992.0,41991.0,0.00422]
[1641699081803,0.53288,41992.0,41991.0,0.00422]
[1641699083160,0.53088,41992.0,41991.0,0.00422]
[1641699083960,0.53288,41992.0,41991.0,0.00422]
[1641699085161,0.53088,41992.0,41991.0,0.00422]
[1641699085763,0.53288,41992.0,41991.0,0.00422]
[1641699087808,0.53388,41992.0,41991.0,0.00422]
[1641699089013,0.53088,41992.0,41991.0,0.00422]
[1641699089815,0.53388,41992.0,41991.0,0.00422]
[1641699090415,0.79426691,41992.0,41991.0,0.00422]
[1641699090671,0.53388,41992.0,41991.0,0.00422]
[1641699091075,0.43388,41992.0,41991.0,0.00422]
[1641699091379,0.43364928,41992.0,41991.0,0.00422]
[1641699091774,0.43064928,41992.0,41991.0,0.00422]
[1641699091974,0.43364928,41992.0,41991.0,0.00422]
[1641699092373,0.53364928,41992.0,41991.0,0.00422]
[1641699093173,0.53064928,41992.0,41991.0,0.00422]
[1641699093774,0.10836453,41992.0,41991.0,0.00422]
[1641699093974,0.11136453,41992.0,41991.0,0.00422]
[1641699094174,0.01136453,41992.0,41991.0,0.00422]
[1641699095206,0.409563,41993.0,41992.0,0.58509581]
[1641699095405,0.059563,41993.0,41992.0,0.58509581]
[1641699095806,0.107363,41993.0,41992.0,0.58509581]
[1641699096005,0.110363,41993.0,41992.0,0.9093934]
[1641699096207,0.110363,41993.0,41992.0,1.1295626]
[1641699096804,0.110363,41993.0,41992.0,1.4749874]
[1641699097205,0.107363,41993.0,41992.0,1.4749874]
[1641699097906,0.111363,41993.0,41992.0,1.4749874]
[1641699098657,0.063563,41993.0,41992.0,1.4749874]
[1641699099857,0.064563,41993.0,41992.0,1.4749874]
[1641699101558,0.064563,41993.0,41992.0,1.2548182]
[1641699101758,0.059563,41993.0,41992.0,1.2548182]
[1641699102011,0.063563,41993.0,41992.0,0.93052061]
[1641699102209,0.063563,41993.0,41992.0,0.79572962]
[1641699103305,0.059563,41993.0,41992.0,0.79572962]
[1641699103905,0.063563,41993.0,41992.0,0.79636683]
[1641699104113,0.063563,41993.0,41992.0,0.79484271]
[1641699104907,0.063563,41993.0,41992.0,0.58509581]
[1641699105106,0.059563,41993.0,41992.0,0.58509581]
[1641699105307,0.059563,41993.0,41992.0,0.79461066]
[1641699105957,0.063563,41993.0,41992.0,0.79461066]
[1641699106362,0.35579602,41991.0,41988.0,0.119318]
[1641699106577,0.00126237,41981.0,41979.0,0.73066711]
[1641699106763,0.670335,41980.0,41979.0,0.08837478]
[1641699107060,0.2,41975.0,41957.0,0.964994]
[1641699107261,0.66812294,41980.0,41958.0,0.9974831]
[1641699107262,0.55122576,41973.0,41958.0,0.9974831]
[1641699107460,0.51198476,41973.0,41968.0,0.3149908]
[1641699107659,0.112959,41972.0,41968.0,0.3149908]
[1641699107960,0.001,41973.0,41969.0,0.3831]
[1641699108159,0.001,41973.0,41968.0,0.3149908]
[1641699108560,0.001,41973.0,41972.0,0.66163491]
[1641699108758,0.001,41973.0,41968.0,0.3149908]
[1641699109160,0.059579,41979.0,41968.0,0.3149908]
[1641699109412,0.059577,41973.0,41968.0,0.3149908]
[1641699109820,0.059577,41973.0,41968.0,0.000696]
[1641699110014,0.060577,41973.0,41968.0,0.000696]
[1641699110413,0.120165,41973.0,41968.0,0.000696]
[1641699110713,0.059589,41971.0,41968.0,0.000696]
[1641699110913,0.112959,41970.0,41968.0,0.000696]
[1641699111613,0.219179,41971.0,41968.0,0.000696]
[1641699112014,0.002,41970.0,41968.0,0.000696]
[1641699112313,0.002,41970.0,41969.0,0.0004064]
[1641699113161,0.41201572,41970.0,41968.0,0.000696]
[1641699113460,0.160759,41970.0,41969.0,0.0004064]
[1641699113662,0.260759,41970.0,41969.0,0.0004064]
[1641699113868,0.263759,41970.0,41969.0,0.0004064]
[1641699114065,0.263759,41970.0,41968.0,0.000696]
[1641699114066,0.41662045,41969.0,41968.0,0.000696]
[1641699114269,0.77737945,41969.0,41968.0,0.000696]
[1641699114464,0.85618645,41969.0,41968.0,0.000696]
[1641699115267,0.44082704,41969.0,41968.0,0.000696]
[1641699115765,0.69468888,41969.0,41968.0,0.000696]
[1641699115967,0.69668888,41969.0,41968.0,0.000696]
[1641699117217,0.69468888,41969.0,41968.0,0.000696]
[1641699117813,0.46170433,41968.0,41964.0,0.00038607]
[1641699118015,0.57383313,41965.0,41964.0,0.00038607]
[1641699118212,0.88591602,41965.0,41964.0,0.00038607]
[1641699118412,0.98591602,41965.0,41964.0,0.00038607]
[1641699118614,0.178825,41964.0,41961.0,0.004]
[1641699118811,0.51109469,41963.0,41961.0,0.004]
[1641699119011,0.66109469,41963.0,41961.0,0.004]
[1641699119211,0.51109469,41963.0,41961.0,0.004]
[1641699119412,0.37997602,41963.0,41961.0,0.004]
[1641699119613,0.279976,41963.0,41961.0,0.004]
[1641699119813,0.220368,41963.0,41961.0,0.004]
[1641699120015,0.222368,41963.0,41961.0,0.004]
[1641699120412,0.109409,41963.0,41961.0,0.004]
[1641699121260,0.107409,41963.0,41961.0,0.004]
[1641699122060,0.109409,41963.0,41961.0,0.004]
[1641699123262,0.107409,41963.0,41961.0,0.004]
[1641699123861,0.109409,41963.0,41961.0,0.004]
[1641699125918,0.112409,41963.0,41961.0,0.004]
[1641699127020,0.112409,41963.0,41962.0,0.29815269]
[1641699127222,0.064609,41963.0,41962.0,0.29815269]
[1641699127420,0.059609,41963.0,41961.0,0.004]
[1641699128026,0.061609,41963.0,41961.0,0.004]
[1641699129368,0.059609,41963.0,41961.0,0.004]
[1641699129969,0.061609,41963.0,41961.0,0.004]
[1641699131270,0.059609,41963.0,41961.0,0.004]
[1641699131908,0.061609,41963.0,41961.0,0.004]
[1641699133008,0.061609,41963.0,41960.0,0.24949825]
[1641699133212,0.059609,41963.0,41960.0,0.24949825]
[1641699134011,0.062609,41963.0,41960.0,0.24949825]
[1641699135311,0.059609,41963.0,41960.0,0.24949825]
[1641699136078,0.003,41963.0,41960.0,0.24949825]
[1641699136274,0.003,41963.0,41962.0,0.89999999]
[1641699136474,0.003,41963.0,41962.0,1.28309999]
[1641699136873,0.0001,41963.0,41962.0,0.47809999]
[1641699137373,0.005,41968.0,41964.0,0.059582]
[1641699137572,0.005,41968.0,41964.0,0.33285736]
[1641699137773,0.005,41968.0,41967.0,0.24569297]
[1641699137974,0.001,41968.0,41967.0,0.24569297]
[1641699138379,0.006,41968.0,41967.0,0.24569297]
[1641699138876,0.001,41968.0,41967.0,0.24569297]
[1641699139280,0.06000939,41969.0,41967.0,0.24569297]
[1641699139819,0.0600094,41969.0,41967.0,0.24569297]
[1641699140014,0.0630094,41969.0,41967.0,0.24569297]
[1641699140819,0.0630094,41969.0,41964.0,0.27327536]
[1641699141217,0.0600094,41969.0,41962.0,0.34570275]
[1641699141423,0.005,41966.0,41962.0,0.34570275]
[1641699141618,0.005,41966.0,41961.0,0.00126985]
[1641699141819,0.059592,41964.0,41961.0,0.00126985]
[1641699142020,0.005,41962.0,41959.0,0.00039272]
[1641699142418,0.005,41962.0,41959.0,0.33920587]
[1641699142818,0.059596,41961.0,41959.0,0.33920587]
[1641699143020,0.059596,41961.0,41959.0,0.33920591]
[1641699144065,0.059596,41961.0,41960.0,0.3831]
[1641699144263,0.059596,41961.0,41959.0,0.33920591]
[1641699145064,0.059596,41961.0,41959.0,0.33881315]
[1641699145264,0.059596,41961.0,41959.0,0.33920591]
[1641699146165,0.060596,41961.0,41959.0,0.33881315]
[1641699146366,0.060596,41961.0,41959.0,0.3392059]
[1641699147213,0.059596,41961.0,41959.0,0.3392059]
[1641699147615,0.05945717,41961.0,41959.0,0.3392059]
[1641699147815,0.05945717,41961.0,41960.0,0.3831]
[1641699148016,0.001,41961.0,41960.0,0.3831]
[1641699148217,0.001,41961.0,41960.0,0.80496824]
[1641699148418,0.001,41961.0,41960.0,0.6858]
[1641699148917,0.006,41961.0,41960.0,0.3027]
[1641699149118,0.125193,41961.0,41959.0,0.00039275]
[1641699149315,0.124193,41961.0,41959.0,0.00039275]
[1641699149516,0.124193,41961.0,41958.0,0.60408188]
[1641699149717,0.124193,41961.0,41959.0,0.00039276]
[1641699150117,0.125193,41961.0,41959.0,0.00039276]
[1641699151368,0.124193,41961.0,41959.0,0.00039276]
[1641699152267,0.125193,41961.0,41959.0,0.00039276]
[1641699152668,0.098893,41961.0,41959.0,0.00039276]
[1641699152868,0.098893,41961.0,41958.0,0.92087622]
[1641699153168,0.098893,41961.0,41959.0,0.00039276]
[1641699153368,0.092893,41961.0,41959.0,0.00039276]
[1641699153771,0.119184,41964.0,41960.0,0.3831]
[1641699153969,0.119184,41964.0,41959.0,0.00039276]
[1641699154174,0.059592,41960.0,41959.0,0.00039276]
[1641699154413,0.059592,41960.0,41959.0,0.38349276]
[1641699155413,0.064592,41960.0,41959.0,0.00039276]
[1641699156014,0.065592,41960.0,41959.0,0.00039276]
[1641699156213,0.065592,41960.0,41959.0,0.00038395]
[1641699157215,0.065592,41960.0,41956.0,0.059597]
[1641699157417,0.064592,41960.0,41959.0,0.00038395]
[1641699158165,0.065592,41960.0,41959.0,0.00038395]
[1641699158370,0.065592,41960.0,41956.0,0.059597]
[1641699158569,0.065592,41960.0,41959.0,0.00038433]
[1641699159369,0.064592,41960.0,41959.0,0.00038433]
[1641699159567,0.064592,41960.0,41959.0,0.00039335]
[1641699160269,0.065592,41960.0,41959.0,0.00039335]
[1641699160470,0.065592,41960.0,41956.0,0.059597]